bitfinex/quotes_BTCUSD_20250225
["timestamp","ask_amount","ask_price","bid_price","bid_amount"]
[1740470096665,0.05780305,89918.0,89882.0,0.01454085]
[1740470096992,0.05780305,89918.0,89884.0,0.01454085]
[1740470097222,0.05780305,89918.0,89886.0,0.01454085]
[1740470097351,0.05780305,89918.0,89888.0,0.01454085]
[1740470097352,0.05522901,89916.0,89888.0,0.01454085]
[1740470097557,0.05522901,89916.0,89857.0,0.3235]
[1740470097558,0.05546491,89914.0,89889.0,0.00121851]
[1740470097761,0.05512844,89912.0,89890.0,1e-08]
[1740470097956,0.05569318,89913.0,89878.0,0.01454085]
[1740470098161,0.05569318,89913.0,89879.0,0.00121874]
[1740470098360,0.05587816,89919.0,89880.0,0.01454086]
[1740470098705,0.00072782,89918.0,89882.0,0.01454085]
[1740470098857,0.05504489,89917.0,89884.0,0.01454085]
[1740470099061,0.24576073,89920.0,89886.0,0.01454085]
[1740470099062,0.05559767,89919.0,89886.0,0.01454085]
[1740470099258,0.05559767,89919.0,89880.0,0.00042965]
[1740470099259,0.05559767,89919.0,89888.0,0.01454085]
[1740470099484,0.24576073,89920.0,89890.0,0.01454085]
[1740470099686,0.24576073,89920.0,89892.0,0.01454085]
[1740470099897,0.24576073,89920.0,89894.0,0.01454085]
[1740470100092,0.36437181,89972.0,89880.0,0.00042965]
[1740470100093,0.24576073,89941.0,89897.0,0.0753]
[1740470100304,0.24576073,89941.0,89898.0,0.01609757]
[1740470100483,0.24576073,89941.0,89899.0,1e-08]
[1740470100705,0.0554722,89940.0,89901.0,0.01454085]
[1740470100927,0.0786,89960.0,89902.0,0.32505664]
[1740470100928,0.24576073,89959.0,89902.0,0.32505664]
[1740470101128,0.24576073,89959.0,89903.0,0.01454086]
[1740470101277,0.09027974,89971.0,89905.0,0.1178]
[1740470101483,0.05556111,89990.0,89920.0,0.06]
[1740470101683,0.0752,89991.0,89925.0,0.1178]
[1740470101902,0.0008489,89940.0,89926.0,0.88239672]
[1740470102099,0.3279,89992.0,89931.0,0.1178]
[1740470102415,0.3279,89992.0,89930.0,0.07454085]
[1740470102416,0.08943444,89993.0,89934.0,0.13234085]
[1740470102643,0.14564609,89993.0,89936.0,0.01454085]
[1740470102941,0.14564609,89993.0,89935.0,0.00155573]
[1740470102942,0.14564609,89993.0,89938.0,0.01454085]
[1740470103098,0.15,89992.0,89940.0,0.01454085]
[1740470103304,0.14564609,89993.0,89941.0,0.00155573]
[1740470103499,0.14564609,89993.0,89942.0,1e-08]
[1740470103864,0.00043018,89993.0,89945.0,0.0751]
[1740470104018,0.08943444,89992.0,89948.0,0.01454085]
[1740470104226,0.08943444,89971.0,89949.0,1e-08]
[1740470104484,0.15,89970.0,89948.0,1e-08]
[1740470104645,0.05508486,89970.0,89932.0,1e-08]
[1740470104982,0.20593704,89961.0,89932.0,1e-08]
[1740470105184,0.00072782,89960.0,89930.0,1e-08]
[1740470105350,0.20580391,89952.0,89926.0,4e-05]
[1740470105549,0.15,89941.0,89926.0,4e-05]
[1740470105758,0.08943444,89933.0,89926.0,4e-05]
[1740470106267,0.00072782,89932.0,89926.0,4e-05]
[1740470107294,0.05505978,89931.0,89926.0,4e-05]
[1740470107443,0.05513378,89929.0,89926.0,4e-05]
[1740470107648,0.00012889,89933.0,89926.0,4e-05]
[1740470107848,0.05577757,89932.0,89926.0,4e-05]
[1740470108102,0.0551167,89930.0,89926.0,4e-05]
[1740470108324,0.05598265,89928.0,89926.0,4e-05]
[1740470108471,0.05577757,89932.0,89926.0,4e-05]
[1740470108678,0.00012889,89933.0,89926.0,4e-05]
[1740470109296,0.00012889,89933.0,89926.0,0.00159643]
[1740470109622,0.00012889,89933.0,89927.0,1e-08]
[1740470109807,0.00072782,89981.0,89927.0,0.00155616]
[1740470110158,0.00012908,89981.0,89928.0,0.54280001]
[1740470110281,0.00012908,89981.0,89929.0,0.06149668]
[1740470110491,0.05577435,89980.0,89930.0,1e-08]
[1740470110721,0.00012908,89981.0,89941.0,0.06]
[1740470110924,0.09016226,90003.0,89943.0,0.01454085]
[1740470111127,0.09016226,90003.0,89944.0,0.54435557]
[1740470111128,0.05648389,90002.0,89944.0,0.54435557]
[1740470111450,0.08943444,89994.0,89945.0,1e-08]
[1740470111649,0.05578147,89993.0,89946.0,0.01454086]
[1740470111853,0.08943444,89984.0,89948.0,0.01454085]
[1740470112009,0.05545414,89983.0,89949.0,0.00155591]
[1740470112219,0.05581819,89984.0,89950.0,0.01454086]
[1740470112410,0.15,89985.0,89952.0,0.01454085]
[1740470112632,0.05581819,89984.0,89954.0,0.01454085]
[1740470112837,0.05581819,89984.0,89919.0,0.02256]
[1740470112838,0.0558492,89974.0,89955.0,1e-08]
[1740470113038,0.0550811,89964.0,89932.0,0.00155614]
[1740470113382,0.05565434,89962.0,89933.0,1e-08]
[1740470113566,0.08943444,89940.0,89933.0,1e-08]
[1740470113773,0.05500782,89938.0,89926.0,4e-05]
[1740470113974,0.15,89950.0,89926.0,4e-05]
[1740470114180,0.05610298,89949.0,89926.0,0.00016908]
[1740470114497,0.05610298,89949.0,89927.0,1e-08]
[1740470114625,0.00072782,89949.0,89926.0,0.00016908]
[1740470114831,0.15072782,89950.0,89927.0,1e-08]
[1740470115027,0.00072782,89950.0,89926.0,0.00016908]
[1740470115397,0.00072782,89955.0,89927.0,1e-08]
[1740470115577,0.00072782,89961.0,89927.0,0.00155653]
[1740470115872,0.00072782,89973.0,89933.0,4e-05]
[1740470116077,0.05569547,89973.0,89934.0,0.01454086]
[1740470116250,0.05615089,89972.0,89936.0,0.01454085]
[1740470116457,0.05546762,89971.0,89938.0,0.01454085]
[1740470116630,0.05619544,89971.0,89940.0,0.01454085]
[1740470116998,0.08943444,89955.0,89941.0,1e-08]
[1740470117190,0.05540281,89954.0,89933.0,4e-05]
[1740470117546,0.08943444,89955.0,89933.0,4e-05]
[1740470117752,0.38330281,89954.0,89933.0,4e-05]
[1740470117950,0.0551499,89944.0,89933.0,4e-05]
[1740470118153,0.05588459,89942.0,89933.0,4e-05]
[1740470118352,0.08943444,89945.0,89933.0,4e-05]
[1740470118353,0.14449867,89934.0,89933.0,4e-05]
[1740470118536,0.47239867,89934.0,89933.0,4e-05]
[1740470118738,0.62239867,89934.0,89933.0,4e-05]
[1740470119182,0.53296423,89934.0,89933.0,4e-05]
[1740470120592,0.59296423,89934.0,89933.0,4e-05]
[1740470122224,0.53296423,89934.0,89933.0,4e-05]
[1740470122662,0.53296423,89934.0,89926.0,0.00016908]
[1740470122663,0.05570939,89928.0,89926.0,0.00016908]
[1740470122859,0.4779,89934.0,89926.0,0.00016908]
[1740470122860,0.26520885,89927.0,89926.0,0.00016908]
[1740470123117,0.20520885,89927.0,89926.0,0.00016908]
[1740470124025,0.06,89930.0,89926.0,0.00016908]
[1740470124367,0.20570939,89928.0,89926.0,0.00016908]
[1740470125001,0.4779,89927.0,89926.0,0.00016908]
[1740470125239,0.59310885,89927.0,89926.0,0.00016908]
[1740470125824,0.53310885,89927.0,89926.0,0.00016908]
[1740470126031,0.3279,89944.0,89926.0,0.00016908]
[1740470126228,0.0551531,89943.0,89927.0,0.0345808]
[1740470126434,0.0551531,89943.0,89928.0,0.01454085]
[1740470126635,0.0553739,89953.0,89926.0,0.00186488]
[1740470126937,0.0552678,89951.0,89901.0,0.0016966]
[1740470127174,0.05542323,89949.0,89902.0,0.03457589]
[1740470127351,0.3279,89950.0,89903.0,0.01609784]
[1740470127551,0.05542323,89949.0,89905.0,0.01454085]
[1740470127754,0.05516933,89961.0,89907.0,0.01454085]
[1740470127978,0.05513184,89960.0,89932.0,0.09945166]
[1740470128192,0.3279,89959.0,89933.0,0.04911674]
[1740470128392,0.05506517,89958.0,89935.0,0.01454085]
[1740470128534,0.05542438,89967.0,89937.0,0.01454085]
[1740470128737,0.05520878,89982.0,89939.0,0.01454085]
[1740470128939,0.05585253,89980.0,89941.0,0.01454085]
[1740470129169,0.05585253,89980.0,89932.0,0.09945166]
[1740470129170,0.00012896,89980.0,89943.0,0.01454085]
[1740470129365,0.05526099,89979.0,89945.0,0.01454085]
[1740470129574,0.05526099,89979.0,89947.0,0.01454085]
[1740470129767,0.05526099,89979.0,89948.0,0.03457589]
[1740470129966,0.05526099,89979.0,89934.0,0.03457589]
[1740470130167,0.05549864,89977.0,89935.0,0.01454085]
[1740470130445,0.05571821,89974.0,89936.0,0.03457589]
[1740470130683,0.05571821,89974.0,89938.0,0.06]
[1740470130899,0.20571821,89974.0,89970.0,2e-08]
[1740470131682,0.20532327,89972.0,89970.0,2e-08]
[1740470132120,0.20532327,89972.0,89970.0,0.00012898]
[1740470132500,0.20532327,89972.0,89907.0,0.06]
[1740470132702,0.05565988,89969.0,89908.0,0.03458175]
[1740470132905,0.05565988,89969.0,89913.0,0.06]
[1740470133105,0.20534692,89945.0,89914.0,0.03458175]
[1740470133445,0.20504955,89939.0,89897.0,0.06]
[1740470133723,0.20504955,89939.0,89902.0,0.03458794]
[1740470134300,0.05504955,89939.0,89902.0,0.03458794]
[1740470134502,0.05503522,89943.0,89902.0,0.03471683]
[1740470134725,0.05503522,89943.0,89903.0,0.03458794]
[1740470135055,0.15,89945.0,89905.0,0.06]
[1740470135201,0.05563859,89944.0,89906.0,0.04912879]
[1740470135408,0.05563859,89944.0,89907.0,0.03458794]
[1740470135705,0.20534692,89945.0,89908.0,0.04912879]
[1740470135913,0.20534692,89945.0,89910.0,0.01454085]
[1740470136117,0.20534692,89945.0,89912.0,0.01454085]
[1740470136441,0.15,89945.0,89914.0,0.01454085]
[1740470136640,0.15,89945.0,89916.0,0.01454085]
[1740470136779,0.15,89945.0,89918.0,0.01454085]
[1740470136978,0.05534675,89953.0,89920.0,0.01454085]
[1740470137185,0.05534675,89953.0,89922.0,0.01454085]
[1740470137425,0.05534675,89953.0,89921.0,0.03458794]
[1740470137426,0.05534675,89953.0,89923.0,0.03458794]
[1740470137621,0.05534675,89953.0,89914.0,0.01454085]
[1740470137798,0.05534675,89953.0,89916.0,0.01454085]
[1740470137998,0.05579574,89961.0,89918.0,0.01454085]
[1740470138196,0.05579574,89961.0,89920.0,0.01454085]
[1740470138455,0.05579574,89961.0,89922.0,0.01454085]
[1740470138630,0.05553165,89938.0,89924.0,0.01454085]
[1740470138846,0.00021008,89939.0,89925.0,0.03458794]
[1740470139050,0.00021008,89939.0,89926.0,0.01454085]
[1740470139251,0.00021008,89939.0,89928.0,0.01454085]
[1740470139451,0.00021008,89939.0,89933.0,0.06]
[1740470139612,0.00021008,89939.0,89934.0,0.04912879]
[1740470139812,0.00021008,89939.0,89936.0,0.01454085]
[1740470140091,0.00021008,89939.0,89938.0,0.01454085]
[1740470140272,0.00021008,89939.0,89938.0,0.04912879]
[1740470141630,0.00021008,89939.0,89938.0,0.03458794]
[1740470141837,0.05525963,89939.0,89938.0,0.03462794]
[1740470142033,0.05525963,89939.0,89938.0,4e-05]
[1740470145208,0.2056631,89948.0,89938.0,4e-05]
[1740470145407,0.2060065,89948.0,89938.0,4e-05]
[1740470146429,0.08752859,89902.0,89901.0,0.0016966]
[1740470146828,0.08752859,89902.0,89901.0,0.00182549]
[1740470148923,0.08752859,89902.0,89901.0,0.03654204]
[1740470151616,0.08752859,89902.0,89901.0,0.05108289]
[1740470152154,0.05564648,89909.0,89901.0,0.03654204]
[1740470152355,0.05564648,89909.0,89902.0,0.03471655]
[1740470152561,0.05564648,89909.0,89901.0,0.00182549]
[1740470153356,0.20521513,89919.0,89901.0,0.00182549]
[1740470154242,0.20562247,89910.0,89901.0,0.00182549]
[1740470155334,0.05541173,89918.0,89901.0,0.00182549]
[1740470156121,0.05,89902.0,89901.0,0.00182549]
[1740470156729,0.05,89902.0,89901.0,0.03651299]
[1740470156930,0.05,89902.0,89901.0,0.00182549]
[1740470160197,0.2783,89902.0,89901.0,0.00182549]
[1740470160810,0.05527749,89900.0,89888.0,4e-05]
[1740470161074,0.05527749,89900.0,89888.0,0.00046965]
[1740470161316,0.05559563,89898.0,89874.0,0.0016966]
[1740470161863,0.05559563,89898.0,89880.0,0.09971609]
[1740470162275,0.05546606,89896.0,89880.0,0.09971609]
[1740470162635,0.05554314,89894.0,89888.0,0.0016974]
[1740470162835,0.05568954,89889.0,89836.0,0.0016958]
[1740470163185,0.0554901,89887.0,89836.0,0.0016958]
[1740470163529,0.05543048,89888.0,89836.0,0.0016958]
[1740470163732,0.05892747,89888.0,89836.0,0.0016958]
[1740470164339,0.05558188,89886.0,89836.0,0.0016958]
[1740470164803,0.0554901,89887.0,89836.0,0.0016958]
[1740470165316,0.0554901,89887.0,89849.0,0.03459469]
[1740470165453,0.0554901,89887.0,89850.0,0.01454085]
[1740470165656,0.0554901,89887.0,89852.0,0.01454085]
[1740470165996,0.05554437,89899.0,89853.0,0.03459469]
[1740470166206,0.0554531,89885.0,89838.0,0.0016958]
[1740470166415,0.0554531,89885.0,89849.0,0.03459568]
[1740470166848,0.08943444,89880.0,89838.0,0.0016958]
[1740470167017,0.20595306,89870.0,89838.0,0.0016958]
[1740470167236,0.00014314,89869.0,89838.0,0.0016958]
[1740470167398,0.05518546,89868.0,89838.0,0.0016958]
[1740470167608,0.05517574,89869.0,89838.0,0.0016958]
[1740470167784,0.05523508,89870.0,89838.0,0.0016958]
[1740470168188,0.05523508,89870.0,89848.0,0.00182528]
[1740470168397,0.1304,89879.0,89848.0,0.00182528]
[1740470168398,0.05554984,89878.0,89848.0,0.00182528]
[1740470168906,0.08943444,89877.0,89848.0,0.00182528]
[1740470169122,0.05579373,89876.0,89848.0,0.00182528]
[1740470169434,0.01454085,89875.0,89848.0,0.00182528]
[1740470170315,0.01454085,89875.0,89811.0,0.02534588]
[1740470170316,0.20500585,89867.0,89811.0,0.02534588]
[1740470170647,0.20500585,89867.0,89811.0,0.00012916]
[1740470170648,0.05541179,89849.0,89811.0,0.00012916]
[1740470170840,0.05587856,89847.0,89811.0,0.00012916]
[1740470171043,0.05594809,89843.0,89811.0,0.00012916]
[1740470171266,0.05594809,89843.0,89780.0,0.0094651]
[1740470171267,0.05506949,89823.0,89780.0,0.0094651]
[1740470171467,0.05549474,89818.0,89780.0,0.0094651]
[1740470172455,0.02244,89822.0,89780.0,0.0094651]
[1740470172456,0.0763,89835.0,89786.0,0.02534588]
[1740470172647,0.07979856,89846.0,89798.0,0.02534588]
[1740470172850,0.05548106,89845.0,89813.0,0.02534588]
[1740470173124,0.00349856,89846.0,89820.0,0.02534588]
[1740470173352,0.00349856,89846.0,89815.0,0.01454085]
[1740470173353,0.00349856,89846.0,89827.0,0.02534588]
[1740470173699,0.08943444,89841.0,89828.0,0.03448026]
[1740470173907,0.02534585,89780.0,89774.0,0.02534588]
[1740470174104,0.02534585,89780.0,89777.0,0.03447751]
[1740470174468,0.02534585,89780.0,89779.0,0.02534588]
[1740470174849,0.02534585,89780.0,89770.0,0.001692]
[1740470175248,0.05546587,89779.0,89776.0,0.00212782]
[1740470175448,0.08121413,89780.0,89776.0,0.00212782]
[1740470175676,0.02534585,89780.0,89776.0,0.00212782]
[1740470175871,0.05546587,89779.0,89776.0,0.00212782]
[1740470176319,0.02534585,89780.0,89776.0,0.00212782]
[1740470176918,0.02534585,89780.0,89779.0,0.02534588]
[1740470177083,0.02534585,89780.0,89779.0,0.07433332]
[1740470177284,0.05523083,89805.0,89791.0,0.02534588]
[1740470177570,0.05599515,89821.0,89793.0,0.01454085]
[1740470177773,0.0796,89831.0,89793.0,0.00894521]
[1740470177774,0.0556435,89828.0,89793.0,0.00894521]
[1740470177981,0.05550297,89842.0,89807.0,0.02534588]
[1740470178185,0.1390115,89858.0,89812.0,0.08534588]
[1740470178390,0.08943444,89832.0,89802.0,3e-08]
[1740470178565,0.05599515,89821.0,89802.0,3e-08]
[1740470179172,0.20599515,89821.0,89802.0,0.00012931]
[1740470179394,0.20507028,89820.0,89802.0,0.00012931]
[1740470179691,0.05567544,89840.0,89804.0,0.06]
[1740470179883,0.05567544,89840.0,89805.0,0.04898563]
[1740470180027,0.15,89840.0,89807.0,0.01454085]
[1740470180233,0.1448746,89850.0,89816.0,0.01454085]
[1740470180484,0.1448746,89850.0,89818.0,0.01454085]
[1740470180634,0.1448746,89850.0,89819.0,0.03444478]
[1740470180832,0.05533562,89836.0,89803.0,0.06]
[1740470181041,0.05533562,89836.0,89804.0,0.0344548]
[1740470181316,0.05533562,89836.0,89805.0,0.01454085]
[1740470181522,0.05533562,89836.0,89807.0,0.01454085]
[1740470181729,0.05533562,89836.0,89808.0,0.0344548]
[1740470182292,0.15,89836.0,89808.0,0.0344548]
[1740470182515,0.15,89835.0,89808.0,0.0344548]
[1740470182698,0.05589999,89835.0,89808.0,0.0344548]
[1740470182896,0.05518587,89836.0,89808.0,0.0344548]
[1740470183331,0.20518587,89836.0,89808.0,0.0344548]
[1740470183493,0.20518587,89836.0,89802.0,0.00012931]
[1740470183694,0.20518587,89836.0,89803.0,0.03449679]
[1740470184298,0.05518587,89836.0,89803.0,0.03449679]
[1740470184630,0.05518587,89836.0,89787.0,0.09935331]
[1740470184631,0.05532737,89801.0,89787.0,0.09935331]
[1740470184833,0.05532737,89801.0,89788.0,0.0345122]
[1740470185055,0.03462609,89802.0,89788.0,0.0345122]
[1740470185412,0.03462609,89802.0,89789.0,0.06]
[1740470185764,0.05532737,89801.0,89790.0,0.0345122]
[1740470185917,0.05532737,89801.0,89790.0,0.0945122]
[1740470186113,0.05532737,89801.0,89772.0,0.03492866]
[1740470186381,0.05532737,89801.0,89773.0,0.03453731]
[1740470187940,0.03475482,89802.0,89773.0,0.03453731]
[1740470188151,0.03475482,89802.0,89773.0,0.03609645]
[1740470188353,0.05532737,89801.0,89775.0,0.01454085]
[1740470188552,0.05532737,89801.0,89777.0,0.01454085]
[1740470188753,0.05532737,89801.0,89776.0,0.03609645]
[1740470188754,0.05532737,89801.0,89779.0,0.01454085]
[1740470188959,0.05532737,89801.0,89781.0,0.01454085]
[1740470189155,0.05532737,89801.0,89783.0,0.01454085]
[1740470189361,0.03475482,89802.0,89785.0,0.01454085]
[1740470189577,0.03475482,89802.0,89787.0,0.01454085]
[1740470189778,0.03475482,89802.0,89763.0,0.0135672]
[1740470189779,0.03475482,89802.0,89790.0,0.045]
[1740470189985,0.03475482,89802.0,89792.0,0.01454085]
[1740470190180,0.00012873,89802.0,89794.0,0.01454085]
[1740470190421,0.00012873,89802.0,89796.0,0.01454085]
[1740470190715,0.00012873,89802.0,89798.0,0.01454085]
[1740470190926,0.00012873,89802.0,89800.0,0.01454085]
[1740470191096,0.00012873,89802.0,89801.0,0.05063692]
[1740470191499,0.0016994,89836.0,89802.0,0.01454085]
[1740470191703,0.00182858,89836.0,89804.0,0.01454085]
[1740470191918,0.00182858,89836.0,89806.0,0.01454085]
[1740470192109,0.08943444,89835.0,89807.0,0.03609572]
[1740470192432,0.05541135,89834.0,89809.0,0.01454085]
[1740470192603,0.08943444,89835.0,89811.0,0.01454085]
[1740470192815,0.08943444,89835.0,89813.0,0.01454085]
[1740470193016,0.14533443,89835.0,89814.0,0.03609586]
[1740470193219,0.20541135,89834.0,89815.0,0.03609575]
[1740470193428,0.00182858,89836.0,89817.0,0.01454085]
[1740470193588,0.00182858,89836.0,89819.0,0.01454085]
[1740470193787,0.08943444,89859.0,89819.0,0.01454085]
[1740470193788,0.05503114,89858.0,89821.0,0.01454085]
[1740470194068,0.05503114,89858.0,89823.0,0.01454085]
[1740470194225,0.05503114,89858.0,89825.0,0.01454085]
[1740470194562,0.05504477,89849.0,89827.0,0.01454085]
[1740470194763,0.05504477,89849.0,89828.0,0.03453731]
[1740470195016,0.08943444,89831.0,89829.0,0.03453731]
[1740470195246,0.15,89830.0,89821.0,0.00012918]
[1740470195618,0.15,89830.0,89823.0,0.01454085]
[1740470195774,0.05534263,89829.0,89824.0,0.03467034]
[1740470195979,0.20540044,89830.0,89825.0,0.03467168]
[1740470196304,0.03474486,89803.0,89800.0,4e-05]
[1740470196505,0.03474486,89803.0,89801.0,0.0346769]
[1740470196688,0.03474486,89803.0,89802.0,0.0346769]
[1740470197090,0.03474486,89803.0,89802.0,0.04921775]
[1740470197491,0.15,89830.0,89803.0,0.01454085]
[1740470197699,0.15012909,89830.0,89805.0,0.01454085]
[1740470197921,0.00012909,89830.0,89807.0,0.01454085]
[1740470198121,0.00012909,89830.0,89809.0,0.01454085]
[1740470198318,0.00012909,89830.0,89810.0,0.03623533]
[1740470198518,0.00012909,89830.0,89811.0,0.04921775]
[1740470198722,0.00012909,89830.0,89810.0,0.00160569]
[1740470198723,0.00012909,89830.0,89813.0,0.01454085]
[1740470199053,0.00012909,89830.0,89815.0,0.01454085]
[1740470199200,0.00012909,89830.0,89817.0,0.01454085]
[1740470199399,0.00012909,89830.0,89819.0,0.01454085]
[1740470199602,0.00012909,89830.0,89821.0,0.01454085]
[1740470199804,0.00012909,89830.0,89823.0,0.01454085]
[1740470200026,0.00012909,89830.0,89825.0,0.01454085]
[1740470200251,0.00012909,89830.0,89827.0,0.01454085]
[1740470200386,0.00012909,89830.0,89829.0,0.01454085]
[1740470200589,0.00012909,89830.0,89829.0,0.04921775]
[1740470201857,0.05552953,89830.0,89829.0,0.04921775]
[1740470202070,0.00012909,89830.0,89829.0,0.04921775]
[1740470202805,5.377e-05,89830.0,89829.0,0.04921775]
[1740470204295,5.377e-05,89830.0,89829.0,0.04925775]
[1740470207848,0.0516992,89836.0,89829.0,0.04925775]
[1740470207990,0.0516992,89836.0,89830.0,0.0346769]
[1740470208209,0.0516992,89836.0,89832.0,0.01454085]
[1740470208409,0.0516992,89836.0,89834.0,0.01454085]
[1740470208680,0.00129144,89850.0,89835.0,0.04921775]
[1740470208827,0.00129144,89850.0,89836.0,0.04921775]
[1740470209035,0.15,89866.0,89837.0,0.03623523]
[1740470209258,0.08943444,89848.0,89839.0,0.01454085]
[1740470209575,0.08943444,89848.0,89841.0,0.01454085]
[1740470209756,0.08943444,89848.0,89843.0,0.01454085]
[1740470209958,0.08943444,89848.0,89844.0,0.0346769]
[1740470210366,0.08943444,89848.0,89829.0,4e-05]
[1740470210699,0.00012916,89859.0,89830.0,0.01454085]
[1740470210844,0.14463576,89854.0,89830.0,0.04921775]
[1740470211044,0.15,89853.0,89831.0,0.0346769]
[1740470211244,0.15,89853.0,89830.0,0.0346769]
[1740470211467,0.15,89853.0,89832.0,0.01454085]
[1740470211792,0.15,89844.0,89833.0,0.0346769]
[1740470211928,0.20591044,89853.0,89834.0,0.01454085]
[1740470212136,0.20591044,89853.0,89836.0,0.01454085]
[1740470212137,0.05511083,89852.0,89836.0,0.01454085]
[1740470212383,0.06155844,89851.0,89767.0,0.16310163]
[1740470212585,0.3279,89850.0,89769.0,0.13264672]
[1740470212743,0.06,89845.0,89770.0,0.03468821]
[1740470212944,0.00155844,89844.0,89771.0,0.03624672]
[1740470213147,0.05532541,89843.0,89772.0,0.03468821]
[1740470213391,0.00155844,89842.0,89773.0,0.00155851]
[1740470213534,0.05587201,89842.0,89773.0,0.00155851]
[1740470213736,0.15,89844.0,89774.0,0.03468821]
[1740470213936,0.15,89844.0,89775.0,0.1540466]
[1740470214189,0.3279,89850.0,89825.0,0.09976421]
[1740470214391,0.3279,89853.0,89827.0,0.01454085]
[1740470214591,0.3279,89853.0,89829.0,0.01454085]
[1740470214776,0.3279,89853.0,89831.0,0.01454085]
[1740470214951,0.3279,89853.0,89833.0,0.01454085]
[1740470215156,0.15,89852.0,89835.0,0.01454085]
[1740470215388,0.15,89852.0,89837.0,0.01454085]
[1740470215567,0.15,89852.0,89839.0,0.01454085]
[1740470215778,0.15,89852.0,89825.0,0.09976421]
[1740470215779,0.15,89852.0,89841.0,0.01454085]
[1740470215974,0.15,89852.0,89842.0,0.03468821]
[1740470216311,0.15,89852.0,89843.0,0.03624633]
[1740470216527,0.3279,89858.0,89844.0,0.03468821]
[1740470216701,0.3279,89858.0,89845.0,0.00155793]
[1740470216882,0.3279,89858.0,89846.0,0.13445242]
[1740470217083,0.00012916,89859.0,89847.0,0.03624607]
[1740470217307,0.00012916,89859.0,89848.0,0.03468821]
[1740470217505,0.00012916,89859.0,89849.0,0.00155763]
[1740470217684,0.00012916,89859.0,89850.0,0.03468821]
[1740470218164,0.00012916,89859.0,89846.0,0.09976421]
[1740470218165,0.08219069,89872.0,89851.0,0.00155772]
[1740470218367,0.15,89870.0,89853.0,0.01454085]
[1740470218588,0.15,89870.0,89855.0,0.01454085]
[1740470218771,0.14852543,89870.0,89857.0,0.01454085]
[1740470218998,0.2426363,89871.0,89859.0,0.01454085]
[1740470219199,0.2426363,89871.0,89861.0,0.01454085]
[1740470219527,0.2426363,89871.0,89863.0,0.01454085]
[1740470219749,0.2276363,89871.0,89865.0,0.01454085]
[1740470219889,0.2276363,89871.0,89867.0,0.01454085]
[1740470220089,0.2293357,89891.0,89869.0,0.01454085]
[1740470220291,0.2293357,89891.0,89871.0,0.01454085]
[1740470220493,0.0016994,89891.0,89873.0,0.01454085]
[1740470220692,0.0016994,89891.0,89872.0,0.03624556]
[1740470220693,0.0016994,89891.0,89875.0,0.01454085]
[1740470220897,0.0016994,89891.0,89877.0,0.01454085]
[1740470221199,0.0016994,89891.0,89879.0,0.01454085]
[1740470221402,0.0016994,89891.0,89880.0,0.03624534]
[1740470221786,0.00182854,89891.0,89881.0,0.03468821]
[1740470222034,0.00182854,89891.0,89882.0,0.0015572]
[1740470222249,0.00182854,89891.0,89884.0,0.01454085]
[1740470222454,0.00182854,89891.0,89886.0,0.01454085]
[1740470222595,0.00182854,89891.0,89888.0,0.01454085]
[1740470222951,0.00182854,89891.0,89889.0,0.03624528]
[1740470223191,0.00182854,89891.0,89890.0,0.04922906]
[1740470224984,0.00182854,89891.0,89890.0,0.03468821]
[1740470225203,0.00182854,89891.0,89852.0,0.03624548]
[1740470225367,0.00182854,89891.0,89854.0,0.01454085]
[1740470225561,0.00182854,89891.0,89856.0,0.01454085]
[1740470225762,0.00182854,89891.0,89858.0,0.01454085]
[1740470225763,0.08943444,89887.0,89858.0,0.01454085]
[1740470225981,0.08943444,89887.0,89860.0,0.01454085]
[1740470226189,0.08943444,89887.0,89862.0,0.01454085]
[1740470226386,0.08943444,89887.0,89864.0,0.01254085]
[1740470226591,0.00182854,89891.0,89865.0,0.03624559]
[1740470226819,0.00182854,89891.0,89866.0,0.03468821]
[1740470227036,0.08943444,89887.0,89867.0,0.03624553]
[1740470227366,0.08943444,89887.0,89868.0,0.03468821]
[1740470227553,0.08943444,89887.0,89852.0,0.00155748]
[1740470227554,0.08943444,89887.0,89869.0,0.03468821]
[1740470227752,0.08943444,89887.0,89870.0,0.0362457]
[1740470227961,0.15,89885.0,89871.0,0.03468821]
[1740470228135,0.15,89885.0,89872.0,0.03624558]
[1740470228335,0.15,89885.0,89873.0,0.03468821]
[1740470228535,0.15,89885.0,89874.0,0.03624561]
[1740470228736,0.15,89885.0,89876.0,0.01454085]
[1740470228938,0.00182854,89891.0,89878.0,0.01454085]
[1740470229280,0.2276363,89901.0,89880.0,0.01454085]
[1740470229415,0.22806666,89901.0,89882.0,0.01454085]
[1740470229622,0.00043036,89901.0,89884.0,0.01454085]
[1740470229819,0.00043036,89901.0,89885.0,0.03468821]
[1740470230028,0.00043036,89901.0,89886.0,0.03468821]
[1740470230209,0.00043036,89901.0,89884.0,0.01454085]
[1740470230210,0.00043036,89901.0,89887.0,0.03624524]
[1740470230459,0.00043036,89901.0,89889.0,0.01454085]
[1740470230689,0.00043036,89901.0,89890.0,0.03468821]
[1740470230899,0.00043036,89901.0,89891.0,0.03468821]
[1740470231174,0.08943444,89900.0,89892.0,0.03624538]
[1740470231308,0.00043036,89901.0,89893.0,0.04922906]
[1740470231514,0.00043036,89901.0,89894.0,0.03624539]
[1740470231714,0.00043036,89901.0,89896.0,0.01454085]
[1740470231921,0.00043036,89901.0,89898.0,0.01454085]
[1740470232120,0.00043036,89901.0,89900.0,0.01454085]
[1740470232319,0.00043036,89901.0,89900.0,0.04922906]
[1740470236906,0.00212716,89901.0,89900.0,0.04922906]
[1740470238204,0.02812716,89902.0,89900.0,0.04922906]
[1740470238424,0.02812716,89902.0,89901.0,0.0507859]
[1740470238889,0.0016988,89920.0,89902.0,0.01454085]
[1740470239094,0.00182783,89920.0,89904.0,0.01454085]
[1740470239374,0.00182783,89920.0,89905.0,0.03624476]
[1740470239589,0.00182783,89920.0,89907.0,0.01454085]
[1740470239780,0.08943444,89919.0,89908.0,0.03624481]
[1740470239981,0.08943444,89910.0,89909.0,0.03468821]
[1740470240406,0.0891156,89910.0,89909.0,0.03468821]
[1740470241128,0.15,89916.0,89909.0,0.03468821]
[1740470241385,0.082,89917.0,89910.0,0.03468821]
[1740470241694,0.15,89915.0,89911.0,0.03468821]
[1740470241849,0.15,89915.0,89912.0,0.03468821]
[1740470242051,0.15,89915.0,89913.0,0.03468821]
[1740470242251,0.15,89915.0,89914.0,0.04922906]
[1740470242679,0.65,89915.0,89914.0,0.04922906]
[1740470243411,0.65,89915.0,89914.0,0.03468821]
[1740470244044,0.65,89915.0,89914.0,0.04922906]
[1740470244161,0.510297,89915.0,89914.0,0.04922906]
[1740470245239,0.65,89915.0,89914.0,0.04922906]
[1740470245903,0.65,89915.0,89914.0,0.03468821]
[1740470246596,0.8776363,89915.0,89914.0,0.03468821]
[1740470247382,0.8776363,89915.0,89914.0,0.04922906]
[1740470247563,0.8776363,89915.0,89914.0,0.03468821]